[Event "Masterklassen 2025"]
[Site "Uppsala, Sweden"]
[Date "2025.07.04"]
[Round "7.15"]
[White "Schriever-Abeln, Marius"]
[Black "Tornberg, Carlos"]
[Result "1-0"]
[TimeControl "90 min for 40 move + 30 min with an increment of 30 sec starting move 1"]
[WhiteFideId "1752650"]
[BlackFideId "1733478"]
[WhiteElo "2052"]
[BlackElo "2233"]

1. d4 {[%clk 01:30:57]} {[%emt 00:00:03]} Nf6 {[%clk 01:30:56]} {[%emt
00:00:05]} 2. c4 {[%clk 01:31:20]} {[%emt 00:00:07]} e6 {[%clk 01:31:23]}
{[%emt 00:00:03]} 3. Nf3 {[%clk 01:31:39]} {[%emt 00:00:11]} c5 {[%clk
01:31:46]} {[%emt 00:00:07]} 4. d5 {[%clk 01:32:00]} {[%emt 00:00:09]} exd5
{[%clk 01:32:15]} {[%emt 00:00:02]} 5. cxd5 {[%clk 01:32:22]} {[%emt 00:00:08]}
d6 {[%clk 01:32:42]} {[%emt 00:00:02]} 6. Nc3 {[%clk 01:32:40]} {[%emt
00:00:11]} g6 {[%clk 01:33:08]} {[%emt 00:00:05]} 7. Nd2 {[%clk 01:32:00]}
{[%emt 00:01:10]} Bg7 {[%clk 01:33:29]} {[%emt 00:00:08]} 8. e4 {[%clk
01:32:16]} {[%emt 00:00:14]} O-O {[%clk 01:33:54]} {[%emt 00:00:06]} 9. Be2
{[%clk 01:32:30]} {[%emt 00:00:17]} b6 {[%clk 01:32:01]} {[%emt 00:02:22]} 10.
O-O {[%clk 01:31:03]} {[%emt 00:01:57]} Ba6 {[%clk 01:32:07]} {[%emt 00:00:24]}
11. Re1 {[%clk 01:27:40]} {[%emt 00:03:54]} Nfd7 {[%clk 01:18:35]} {[%emt
00:14:00]} 12. f4 {[%clk 01:10:05]} {[%emt 00:18:05]} Bxe2 {[%clk 01:09:34]}
{[%emt 00:09:32]} 13. Qxe2 {[%clk 01:08:35]} {[%emt 00:02:00]} a6 {[%clk
00:59:50]} {[%emt 00:10:14]} 14. a4 {[%clk 01:06:35]} {[%emt 00:02:30]} Ra7
{[%clk 00:53:29]} {[%emt 00:06:51]} 15. Nc4 {[%clk 00:59:43]} {[%emt 00:07:23]}
Nf6 {[%clk 00:42:40]} {[%emt 00:11:18]} 16. Qf3 {[%clk 00:46:09]} {[%emt
00:14:03]} Rd7 {[%clk 00:30:51]} {[%emt 00:12:20]} 17. Be3 {[%clk 00:44:24]}
{[%emt 00:02:16]} Ne8 {[%clk 00:28:06]} {[%emt 00:03:14]} 18. Rad1 {[%clk
00:37:50]} {[%emt 00:07:04]} Rb7 {[%clk 00:21:57]} {[%emt 00:06:38]} 19. e5
{[%clk 00:23:46]} {[%emt 00:14:35]} b5 {[%clk 00:18:07]} {[%emt 00:04:21]} 20.
axb5 {[%clk 00:23:25]} {[%emt 00:00:50]} axb5 {[%clk 00:18:27]} {[%emt
00:00:10]} 21. Nxd6 {[%clk 00:21:30]} {[%emt 00:02:25]} Nxd6 {[%clk 00:18:15]}
{[%emt 00:00:42]} 22. Bxc5 {[%clk 00:20:46]} {[%emt 00:01:14]} Nc4 {[%clk
00:17:17]} {[%emt 00:01:28]} 23. Bxf8 {[%clk 00:17:06]} {[%emt 00:04:09]} Kxf8
{[%clk 00:14:25]} {[%emt 00:03:21]} 24. b3 {[%clk 00:15:58]} {[%emt 00:01:40]}
Na5 {[%clk 00:12:47]} {[%emt 00:02:07]} 25. Ne4 {[%clk 00:12:10]} {[%emt
00:04:19]} Qb6+ {[%clk 00:12:53]} {[%emt 00:00:25]} 26. Kh1 {[%clk 00:12:03]}
{[%emt 00:00:36]} Nd7 {[%clk 00:12:17]} {[%emt 00:01:06]} 27. Rc1 {[%clk
00:10:21]} {[%emt 00:02:12]} Rc7 {[%clk 00:11:46]} {[%emt 00:01:02]} 28. Ng5
{[%clk 00:07:47]} {[%emt 00:03:03]} h6 {[%clk 00:08:54]} {[%emt 00:03:21]} 29.
d6 {[%clk 00:07:07]} {[%emt 00:01:10]} Rc6 {[%clk 00:08:22]} {[%emt 00:01:03]}
30. e6 {[%clk 00:03:45]} {[%emt 00:03:51]} fxe6 {[%clk 00:04:35]} {[%emt
00:04:18]} 31. Nxe6+ {[%clk 00:03:51]} {[%emt 00:00:24]} Kg8 {[%clk 00:03:20]}
{[%emt 00:01:45]} 32. Nxg7 {[%clk 00:03:54]} {[%emt 00:00:26]} Rxc1 {[%clk
00:03:31]} {[%emt 00:00:19]} 33. Qd5+ {[%clk 00:03:10]} {[%emt 00:01:15]} Kxg7
{[%clk 00:03:34]} {[%emt 00:00:27]} 34. Rxc1 {[%clk 00:03:25]} {[%emt
00:00:15]} Qe3 {[%clk 00:03:17]} {[%emt 00:00:47]} 35. Rd1 {[%clk 00:02:58]}
{[%emt 00:00:57]} Nxb3 {[%clk 00:02:35]} {[%emt 00:01:12]} 36. Qxb5 {[%clk
00:02:20]} {[%emt 00:01:09]} Nbc5 {[%clk 00:02:53]} {[%emt 00:00:12]} 37. Qb2+
{[%clk 00:02:05]} {[%emt 00:00:44]} Kh7 {[%clk 00:02:07]} {[%emt 00:01:16]} 38.
Qd4 {[%clk 00:00:36]} {[%emt 00:01:58]} Qxd4 {[%clk 00:01:16]} {[%emt
00:01:21]} 39. Rxd4 {[%clk 00:01:05]} {[%emt 00:00:02]} Kg7 {[%clk 00:00:40]}
{[%emt 00:01:06]} 40. g4 {[%clk 00:00:40]} {[%emt 00:00:55]} Kf6 {[%clk
00:00:45]} {[%emt 00:00:25]} 41. Kg2 {[%clk 00:23:43]} {[%emt 00:07:27]} Ke6
{[%clk 00:29:29]} {[%emt 00:01:46]} 42. Kg3 {[%clk 00:15:43]} {[%emt 00:08:30]}
Nf6 {[%clk 00:25:02]} {[%emt 00:04:57]} 43. Kh4 {[%clk 00:11:50]} {[%emt
00:04:22]} Kf7 {[%clk 00:15:03]} {[%emt 00:10:29]} 44. Rd1 {[%clk 00:09:16]}
{[%emt 00:03:04]} Ne6 {[%clk 00:13:18]} {[%emt 00:02:16]} 45. g5 {[%clk
00:06:44]} {[%emt 00:03:03]} hxg5+ {[%clk 00:13:19]} {[%emt 00:00:28]} 46. fxg5
{[%clk 00:07:11]} {[%emt 00:00:03]} Ne4 {[%clk 00:11:33]} {[%emt 00:02:16]} 47.
d7 {[%clk 00:03:50]} {[%emt 00:03:51]} Nd8 {[%clk 00:10:29]} {[%emt 00:01:33]}
48. Re1 {[%clk 00:02:01]} {[%emt 00:02:19]} Nd6 {[%clk 00:10:26]} {[%emt
00:00:34]} 49. Kg4 {[%clk 00:01:55]} {[%emt 00:00:36]} Nc6 {[%clk 00:08:42]}
{[%emt 00:02:14]} 50. h4 {[%clk 00:01:29]} {[%emt 00:00:56]} Nc4 {[%clk
00:08:40]} {[%emt 00:00:32]} 51. Kf4 {[%clk 00:00:58]} {[%emt 00:01:01]} Nd6
{[%clk 00:09:05]} {[%emt 00:00:05]} 52. Re2 {[%clk 00:00:46]} {[%emt 00:00:42]}
Nd8 {[%clk 00:08:59]} {[%emt 00:00:35]} 53. Kg4 {[%clk 00:00:48]} {[%emt
00:00:28]} N6b7 {[%clk 00:08:12]} {[%emt 00:01:17]} 54. Re8 {[%clk 00:00:40]}
{[%emt 00:00:38]} Ne6 {[%clk 00:08:14]} {[%emt 00:00:28]} 55. Kg3 {[%clk
00:00:38]} {[%emt 00:00:33]} Nbd8 {[%clk 00:08:03]} {[%emt 00:00:41]} 56. Kf3
{[%clk 00:00:43]} {[%emt 00:00:25]} Nc6 {[%clk 00:07:54]} {[%emt 00:00:38]} 57.
Ke3 {[%clk 00:00:39]} {[%emt 00:00:33]} Ncd8 {[%clk 00:05:36]} {[%emt
00:02:50]} 58. Ke4 {[%clk 00:00:33]} {[%emt 00:00:36]} Kg7 {[%clk 00:04:49]}
{[%emt 00:01:17]} 59. Ke5 {[%clk 00:00:34]} {[%emt 00:00:29]} Kf7 {[%clk
00:05:01]} {[%emt 00:00:18]} 60. Kd6 {[%clk 00:00:37]} {[%emt 00:00:28]} Nb7+
{[%clk 00:05:17]} {[%emt 00:00:14]} 61. Kc6 {[%clk 00:00:34]} {[%emt 00:00:32]}
Nbd8+ {[%clk 00:05:34]} {[%emt 00:00:12]} 62. Kb6 {[%clk 00:00:43]} {[%emt
00:00:22]} Kg7 {[%clk 00:05:21]} {[%emt 00:00:43]} 63. Ka7 {[%clk 00:00:45]}
{[%emt 00:00:28]} Kf7 {[%clk 00:03:23]} {[%emt 00:02:28]} 64. Kb8 {[%clk
00:00:45]} {[%emt 00:00:30]} Nc6+ {[%clk 00:02:44]} {[%emt 00:01:09]} 65. Kb7
{[%clk 00:00:33]} {[%emt 00:00:41]} Ncd8+ {[%clk 00:02:52]} {[%emt 00:00:23]}
66. Kc8 {[%clk 00:00:42]} {[%emt 00:00:21]} Nc6 {[%clk 00:02:55]} {[%emt
00:00:27]} 67. d8=Q {[%clk 00:00:38]} {[%emt 00:00:34]} Nexd8 {[%clk 00:02:16]}
{[%emt 00:01:09]} 68. Rxd8 {[%clk 00:01:00]} {[%emt 00:00:08]} Ne7+ {[%clk
00:02:40]} {[%emt 00:00:05]} 69. Kc7 {[%clk 00:00:36]} {[%emt 00:00:55]} Nf5
{[%clk 00:03:08]} {[%emt 00:00:01]} 70. Rd7 {[%clk 00:00:39]} {[%emt 00:00:28]}
Ke6 {[%clk 00:02:35]} {[%emt 00:01:03]} 71. Rh7 {[%clk 00:00:44]} {[%emt
00:00:25]} Ng3 {[%clk 00:01:49]} {[%emt 00:01:15]} 72. Kd8 {[%clk 00:00:48]}
{[%emt 00:00:26]} Kf5 {[%clk 00:01:31]} {[%emt 00:00:49]} 73. Ke8 {[%clk
00:00:45]} {[%emt 00:00:33]} Ne2 {[%clk 00:00:44]} {[%emt 00:01:16]} 74. Kf7
{[%clk 00:00:49]} {[%emt 00:00:28]} Nd4 {[%clk 00:00:36]} {[%emt 00:00:38]} 75.
Rh6 {[%clk 00:00:51]} {[%emt 00:00:27]} Nf3 {[%clk 00:00:46]} {[%emt 00:00:20]}
76. Kg7 {[%clk 00:00:48]} {[%emt 00:00:33]} Ne5 {[%clk 00:00:38]} {[%emt
00:00:38]} 77. Rh8 {[%clk 00:00:43]} {[%emt 00:00:34]} Kg4 {[%clk 00:00:34]}
{[%emt 00:00:34]} 78. Kf6 {[%clk 00:00:46]} {[%emt 00:00:27]} Kf4 {[%clk
00:00:49]} {[%emt 00:00:16]} 79. Ra8 {[%clk 00:00:55]} {[%emt 00:00:21]} Nf3
{[%clk 00:00:51]} {[%emt 00:00:28]} 80. Ra4+ {[%clk 00:01:14]} {[%emt
00:00:11]} 1-0

[Event "Masterklassen 2025"]
[Site "Uppsala, Sweden"]
[Date "2025.07.04"]
[Round "7.16"]
[White "Stanley, Mikael"]
[Black "Malm, Simon"]
[Result "0-1"]
[TimeControl "90 min for 40 move + 30 min with an increment of 30 sec starting move 1"]
[WhiteFideId "1703730"]
[BlackFideId "1759825"]
[WhiteElo "2150"]
[BlackElo "2007"]

1. e4 {[%clk 01:30:58]} {[%emt 00:00:02]} c6 {[%clk 01:30:49]} {[%emt
00:00:11]} 2. d4 {[%clk 01:30:22]} {[%emt 00:01:06]} d5 {[%clk 01:31:12]}
{[%emt 00:00:07]} 3. f3 {[%clk 01:30:49]} {[%emt 00:00:03]} dxe4 {[%clk
01:31:26]} {[%emt 00:00:16]} 4. fxe4 {[%clk 01:31:02]} {[%emt 00:00:17]} e5
{[%clk 01:31:47]} {[%emt 00:00:08]} 5. Nf3 {[%clk 01:31:21]} {[%emt 00:00:12]}
Bg4 {[%clk 01:32:04]} {[%emt 00:00:13]} 6. Bc4 {[%clk 01:31:39]} {[%emt
00:00:11]} Nd7 {[%clk 01:31:31]} {[%emt 00:01:03]} 7. O-O {[%clk 01:30:54]}
{[%emt 00:01:16]} Ngf6 {[%clk 01:29:49]} {[%emt 00:02:12]} 8. c3 {[%clk
01:30:33]} {[%emt 00:00:51]} Bd6 {[%clk 01:27:54]} {[%emt 00:02:25]} 9. Bg5
{[%clk 01:26:56]} {[%emt 00:04:07]} O-O {[%clk 01:25:28]} {[%emt 00:02:57]} 10.
Nbd2 {[%clk 01:25:17]} {[%emt 00:02:08]} Qc7 {[%clk 01:18:04]} {[%emt
00:07:54]} 11. Qe1 {[%clk 00:47:07]} {[%emt 00:38:40]} b5 {[%clk 01:13:35]}
{[%emt 00:04:59]} 12. Bb3 {[%clk 00:46:05]} {[%emt 00:01:31]} c5 {[%clk
01:11:38]} {[%emt 00:02:27]} 13. Qh4 {[%clk 00:34:35]} {[%emt 00:12:01]} c4
{[%clk 00:47:21]} {[%emt 00:24:47]} 14. Bc2 {[%clk 00:32:15]} {[%emt 00:02:49]}
Bxf3 {[%clk 00:36:01]} {[%emt 00:11:51]} 15. Rxf3 {[%clk 00:29:20]} {[%emt
00:03:25]} Qb6 {[%clk 00:27:02]} {[%emt 00:09:29]} 16. Be3 {[%clk 00:22:37]}
{[%emt 00:07:13]} Rfe8 {[%clk 00:17:47]} {[%emt 00:09:45]} 17. Raf1 {[%clk
00:19:35]} {[%emt 00:03:31]} Rad8 {[%clk 00:13:46]} {[%emt 00:04:32]} 18. Kh1
{[%clk 00:16:17]} {[%emt 00:03:48]} Qc7 {[%clk 00:13:03]} {[%emt 00:01:13]} 19.
Bg5 {[%clk 00:13:29]} {[%emt 00:03:17]} Be7 {[%clk 00:12:26]} {[%emt 00:01:08]}
20. Rf5 {[%clk 00:08:25]} {[%emt 00:05:34]} Nf8 {[%clk 00:09:52]} {[%emt
00:03:04]} 21. Nf3 {[%clk 00:06:07]} {[%emt 00:02:48]} Ng6 {[%clk 00:10:14]}
{[%emt 00:00:08]} 22. Qg3 {[%clk 00:05:10]} {[%emt 00:01:26]} Nh5 {[%clk
00:10:21]} {[%emt 00:00:23]} 23. Qg4 {[%clk 00:05:06]} {[%emt 00:00:35]} Bxg5
{[%clk 00:09:36]} {[%emt 00:01:14]} 24. Nxg5 {[%clk 00:05:13]} {[%emt
00:00:24]} Nf6 {[%clk 00:05:54]} {[%emt 00:04:12]} 25. Qh3 {[%clk 00:04:40]}
{[%emt 00:01:02]} h6 {[%clk 00:06:06]} {[%emt 00:00:18]} 26. Nf3 {[%clk
00:03:23]} {[%emt 00:01:47]} Re7 {[%clk 00:05:07]} {[%emt 00:01:30]} 27. Rxf6
{[%clk 00:03:08]} {[%emt 00:00:45]} gxf6 {[%clk 00:05:17]} {[%emt 00:00:19]} 28.
Qxh6 {[%clk 00:03:33]} {[%emt 00:00:05]} exd4 {[%clk 00:01:40]} {[%emt
00:04:07]} 29. e5 {[%clk 00:03:03]} {[%emt 00:01:00]} fxe5 {[%clk 00:00:54]}
{[%emt 00:01:16]} 30. cxd4 {[%clk 00:02:09]} {[%emt 00:01:24]} exd4 {[%clk
00:00:53]} {[%emt 00:00:32]} 31. Bf5 {[%clk 00:01:44]} {[%emt 00:00:55]} Qf4
{[%clk 00:00:39]} {[%emt 00:00:43]} 32. Qh5 {[%clk 00:01:47]} {[%emt 00:00:28]}
Kg7 {[%clk 00:00:51]} {[%emt 00:00:17]} 33. Bh3 {[%clk 00:01:33]} {[%emt
00:00:44]} Re5 {[%clk 00:00:42]} {[%emt 00:00:39]} 34. Qg4 {[%clk 00:00:40]}
{[%emt 00:01:23]} Qxg4 {[%clk 00:00:58]} {[%emt 00:00:15]} 35. Bxg4 {[%clk
00:00:54]} {[%emt 00:00:16]} Re2 {[%clk 00:00:47]} {[%emt 00:00:41]} 36. Ng5
{[%clk 00:00:35]} {[%emt 00:00:49]} Re7 {[%clk 00:01:16]} {[%emt 00:00:01]} 37.
Kg1 {[%clk 00:00:46]} {[%emt 00:00:18]} d3 {[%clk 00:01:36]} {[%emt 00:00:11]}
38. Kf2 {[%clk 00:01:04]} {[%emt 00:00:12]} Rd5 {[%clk 00:01:18]} {[%emt
00:00:46]} 39. h4 {[%clk 00:01:20]} {[%emt 00:00:15]} Nxh4 {[%clk 00:01:25]}
{[%emt 00:00:23]} 40. Nh3 {[%clk 00:01:22]} {[%emt 00:00:29]} Ng6 {[%clk
00:00:48]} {[%emt 00:01:06]} 41. Bf3 {[%clk 00:01:10]} {[%emt 00:00:42]} 0-1

[Event "Masterklassen 2025"]
[Site "Uppsala, Sweden"]
[Date "2025.07.05"]
[Round "8.1"]
[White "Cederstam, Carl"]
[Black "Eriksson, Jorgen"]
[Result "1-0"]
[TimeControl "90 min for 40 move + 30 min with an increment of 30 sec starting move 1"]
[WhiteTitle "FM"]
[WhiteFideId "1713329"]
[BlackFideId "1701967"]
[WhiteElo "2316"]
[BlackElo "2160"]

1. e4 {[%clk 01:30:05]} {[%emt 00:00:53]} c5 {[%clk 01:30:39]} {[%emt
00:00:23]} 2. Nf3 {[%clk 01:30:28]} {[%emt 00:00:07]} e6 {[%clk 01:30:52]}
{[%emt 00:00:17]} 3. d4 {[%clk 01:30:08]} {[%emt 00:00:49]} cxd4 {[%clk
01:31:09]} {[%emt 00:00:14]} 4. Nxd4 {[%clk 01:30:35]} {[%emt 00:00:03]} a6
{[%clk 01:31:20]} {[%emt 00:00:19]} 5. Nc3 {[%clk 01:30:34]} {[%emt 00:00:31]}
b5 {[%clk 01:31:20]} {[%emt 00:00:30]} 6. Bd3 {[%clk 01:30:47]} {[%emt
00:00:16]} Bb7 {[%clk 01:30:00]} {[%emt 00:01:50]} 7. Qe2 {[%clk 01:27:05]}
{[%emt 00:04:12]} Qb6 {[%clk 01:15:03]} {[%emt 00:15:28]} 8. Nf3 {[%clk
01:27:11]} {[%emt 00:00:23]} Qc7 {[%clk 01:11:16]} {[%emt 00:04:17]} 9. O-O
{[%clk 01:20:33]} {[%emt 00:07:08]} Nf6 {[%clk 00:49:37]} {[%emt 00:22:09]} 10.
e5 {[%clk 00:49:29]} {[%emt 00:31:34]} Nd5 {[%clk 00:49:24]} {[%emt 00:00:43]}
11. Bd2 {[%clk 00:46:49]} {[%emt 00:03:09]} Nxc3 {[%clk 00:41:24]} {[%emt
00:08:31]} 12. Bxc3 {[%clk 00:45:37]} {[%emt 00:01:42]} Be7 {[%clk 00:40:33]}
{[%emt 00:01:20]} 13. Rfe1 {[%clk 00:38:38]} {[%emt 00:07:30]} O-O {[%clk
00:38:13]} {[%emt 00:02:50]} 14. a3 {[%clk 00:35:49]} {[%emt 00:03:19]} f5
{[%clk 00:20:15]} {[%emt 00:18:28]} 15. exf6 {[%clk 00:29:38]} {[%emt
00:06:41]} gxf6 {[%clk 00:19:26]} {[%emt 00:01:19]} 16. Ng5 {[%clk 00:26:56]}
{[%emt 00:03:12]} Bc5 {[%clk 00:05:26]} {[%emt 00:14:31]} 17. Bxh7+ {[%clk
00:22:45]} {[%emt 00:04:41]} Kg7 {[%clk 00:04:28]} {[%emt 00:01:28]} 18. Qg4
{[%clk 00:22:30]} {[%emt 00:00:43]} 1-0

[Event "Masterklassen 2025"]
[Site "Uppsala, Sweden"]
[Date "2025.07.05"]
[Round "8.2"]
[White "Walinder, Lars"]
[Black "Crevatin, Leo"]
[Result "1/2-1/2"]
[TimeControl "90 min for 40 move + 30 min with an increment of 30 sec starting move 1"]
[WhiteTitle "FM"]
[BlackTitle "FM"]
[WhiteFideId "1707329"]
[BlackFideId "1726307"]
[WhiteElo "2181"]
[BlackElo "2248"]

1. c4 {[%clk 01:30:47]} {[%emt 00:00:12]} e6 {[%clk 01:30:33]} {[%emt
00:00:27]} 2. Nc3 {[%clk 01:31:06]} {[%emt 00:00:11]} d5 {[%clk 01:30:10]}
{[%emt 00:00:53]} 3. e3 {[%clk 01:31:22]} {[%emt 00:00:14]} Nf6 {[%clk
01:30:35]} {[%emt 00:00:05]} 4. Nf3 {[%clk 01:31:42]} {[%emt 00:00:10]} b6
{[%clk 01:30:50]} {[%emt 00:00:16]} 5. cxd5 {[%clk 01:31:02]} {[%emt 00:01:09]}
exd5 {[%clk 01:31:17]} {[%emt 00:00:03]} 6. b4 {[%clk 01:30:42]} {[%emt
00:00:49]} Bb7 {[%clk 01:29:25]} {[%emt 00:02:23]} 7. Bb2 {[%clk 01:23:57]}
{[%emt 00:07:15]} a6 {[%clk 01:24:57]} {[%emt 00:04:59]} 8. Qb3 {[%clk
01:21:36]} {[%emt 00:02:50]} Nbd7 {[%clk 01:16:57]} {[%emt 00:08:30]} 9. Be2
{[%clk 01:20:02]} {[%emt 00:02:04]} Be7 {[%clk 01:08:38]} {[%emt 00:08:50]} 10.
O-O {[%clk 01:20:17]} {[%emt 00:00:14]} O-O {[%clk 01:08:32]} {[%emt 00:00:36]}
11. a4 {[%clk 01:19:31]} {[%emt 00:01:15]} c6 {[%clk 00:59:33]} {[%emt
00:09:30]} 12. b5 {[%clk 01:07:57]} {[%emt 00:12:05]} axb5 {[%clk 00:54:20]}
{[%emt 00:05:43]} 13. axb5 {[%clk 01:07:08]} {[%emt 00:01:19]} c5 {[%clk
00:54:27]} {[%emt 00:00:22]} 14. d4 {[%clk 01:06:08]} {[%emt 00:01:29]} c4
{[%clk 00:52:41]} {[%emt 00:02:17]} 15. Qc2 {[%clk 01:05:38]} {[%emt 00:00:59]}
Qc7 {[%clk 00:51:12]} {[%emt 00:02:00]} 16. Nd2 {[%clk 00:56:43]} {[%emt
00:09:24]} Bb4 {[%clk 00:46:22]} {[%emt 00:05:21]} 17. Bf3 {[%clk 00:55:51]}
{[%emt 00:01:22]} Ra5 {[%clk 00:43:33]} {[%emt 00:03:19]} 18. Rab1 {[%clk
00:53:55]} {[%emt 00:02:25]} Re8 {[%clk 00:41:03]} {[%emt 00:03:01]} 19. Ba1
{[%clk 00:49:15]} {[%emt 00:05:10]} Bf8 {[%clk 00:37:58]} {[%emt 00:03:35]} 20.
Rfe1 {[%clk 00:46:25]} {[%emt 00:03:20]} Raa8 {[%clk 00:30:14]} {[%emt
00:08:15]} 1/2-1/2

[Event "Masterklassen 2025"]
[Site "Uppsala, Sweden"]
[Date "2025.07.05"]
[Round "8.3"]
[White "Granath, Jonas"]
[Black "Muntean, Victor"]
[Result "0-1"]
[TimeControl "90 min for 40 move + 30 min with an increment of 30 sec starting move 1"]
[WhiteFideId "1761013"]
[BlackFideId "1054414"]
[WhiteElo "2008"]
[BlackElo "2140"]

1. e4 {[%clk 01:30:56]} {[%emt 00:00:03]} g6 {[%clk 01:30:53]} {[%emt
00:00:09]} 2. d4 {[%clk 01:30:59]} {[%emt 00:00:26]} Bg7 {[%clk 01:31:17]}
{[%emt 00:00:05]} 3. Nc3 {[%clk 01:27:58]} {[%emt 00:03:32]} a6 {[%clk
01:31:36]} {[%emt 00:00:12]} 4. Nf3 {[%clk 01:16:37]} {[%emt 00:11:51]} b5
{[%clk 01:31:48]} {[%emt 00:00:17]} 5. Bd3 {[%clk 01:11:34]} {[%emt 00:05:32]}
Bb7 {[%clk 01:31:12]} {[%emt 00:01:06]} 6. O-O {[%clk 01:10:44]} {[%emt
00:01:20]} d6 {[%clk 01:31:32]} {[%emt 00:00:11]} 7. Re1 {[%clk 00:54:41]}
{[%emt 00:16:33]} Nd7 {[%clk 01:31:49]} {[%emt 00:00:14]} 8. Ne2 {[%clk
00:47:31]} {[%emt 00:07:39]} e5 {[%clk 01:25:30]} {[%emt 00:06:49]} 9. c3
{[%clk 00:44:58]} {[%emt 00:03:03]} Ngf6 {[%clk 01:24:15]} {[%emt 00:01:44]} 10.
Ng3 {[%clk 00:41:15]} {[%emt 00:04:13]} O-O {[%clk 01:20:29]} {[%emt 00:04:17]}
11. a4 {[%clk 00:35:32]} {[%emt 00:06:13]} bxa4 {[%clk 01:06:59]} {[%emt
00:14:00]} 12. Rxa4 {[%clk 00:33:44]} {[%emt 00:02:18]} Re8 {[%clk 01:05:58]}
{[%emt 00:01:30]} 13. Qb3 {[%clk 00:27:51]} {[%emt 00:06:24]} Rb8 {[%clk
00:50:30]} {[%emt 00:15:58]} 14. Qa2 {[%clk 00:28:07]} {[%emt 00:00:14]} d5
{[%clk 00:47:57]} {[%emt 00:03:03]} 15. dxe5 {[%clk 00:17:55]} {[%emt
00:10:42]} Nxe4 {[%clk 00:45:45]} {[%emt 00:02:43]} 16. Nxe4 {[%clk 00:12:12]}
{[%emt 00:06:13]} dxe4 {[%clk 00:46:01]} {[%emt 00:00:13]} 17. Bxe4 {[%clk
00:12:05]} {[%emt 00:00:36]} Nxe5 {[%clk 00:43:36]} {[%emt 00:02:56]} 18. Be3
{[%clk 00:09:25]} {[%emt 00:03:10]} Bxe4 {[%clk 00:35:26]} {[%emt 00:08:40]} 19.
Rxe4 {[%clk 00:09:50]} {[%emt 00:00:05]} Nd3 {[%clk 00:35:45]} {[%emt
00:00:10]} 20. Bg5 {[%clk 00:08:42]} {[%emt 00:01:39]} Nxe1 {[%clk 00:33:05]}
{[%emt 00:03:10]} 21. Bxd8 {[%clk 00:09:01]} {[%emt 00:00:12]} Rxe4 {[%clk
00:31:47]} {[%emt 00:01:48]} 22. Bxc7 {[%clk 00:06:30]} {[%emt 00:03:01]} Rc8
{[%clk 00:30:24]} {[%emt 00:01:52]} 23. Ng5 {[%emt 00:03:52]} Re7 {[%clk
00:30:20]} {[%emt 00:00:26]} 24. Bd6 {[%clk 00:03:37]} {[%emt 00:00:09]} Rd7
{[%clk 00:30:04]} {[%emt 00:00:46]} 25. Qxa6 {[%clk 00:03:48]} {[%emt
00:00:18]} Rcd8 {[%clk 00:30:23]} {[%emt 00:00:11]} 26. Ne4 {[%clk 00:02:29]}
{[%emt 00:01:50]} h6 {[%clk 00:28:41]} {[%emt 00:02:12]} 27. Kf1 {[%clk
00:00:54]} {[%emt 00:02:05]} f5 {[%clk 00:26:44]} {[%emt 00:02:27]} 28. Kxe1
{[%clk 00:01:18]} {[%emt 00:00:06]} Re8 {[%clk 00:26:58]} {[%emt 00:00:17]} 29.
f3 {[%clk 00:01:30]} {[%emt 00:00:18]} fxe4 {[%clk 00:27:20]} {[%emt 00:00:07]}
30. Kf2 {[%clk 00:01:06]} {[%emt 00:00:54]} Kh7 {[%clk 00:25:09]} {[%emt
00:02:41]} 31. Bf4 {[%clk 00:01:07]} {[%emt 00:00:29]} Rde7 {[%clk 00:21:08]}
{[%emt 00:04:31]} 32. Qe2 {[%clk 00:00:55]} {[%emt 00:00:41]} g5 {[%clk
00:19:20]} {[%emt 00:02:19]} 33. Be3 {[%clk 00:01:17]} {[%emt 00:00:08]} exf3
{[%clk 00:19:23]} {[%emt 00:00:27]} 34. gxf3 {[%clk 00:01:33]} {[%emt
00:00:14]} Rxe3 {[%clk 00:19:06]} {[%emt 00:00:47]} 35. Qxe3 {[%clk 00:01:56]}
{[%emt 00:00:07]} Rxe3 {[%clk 00:19:31]} {[%emt 00:00:04]} 36. Kxe3 {[%clk
00:02:19]} {[%emt 00:00:08]} Kg6 {[%clk 00:19:30]} {[%emt 00:00:31]} 37. Ke4
{[%clk 00:02:13]} {[%emt 00:00:35]} h5 {[%clk 00:18:25]} 38. h4 {[%clk
00:00:44]} {[%emt 00:03:34]} g4 {[%emt 00:00:12]} 39. Kf4 {[%clk 00:01:06]}
{[%emt 00:00:04]} Be5+ {[%clk 00:19:10]} {[%emt 00:00:08]} 40. Ke3 {[%clk
00:01:14]} {[%emt 00:00:22]} Bg3 {[%clk 00:17:43]} {[%emt 00:01:57]} 41. f4
{[%clk 00:21:25]} {[%emt 00:10:19]} Kf5 {[%emt 00:00:28]} 0-1